[Event "Titled Tuesday Blitz March 08 Late 2022"]
[White "Golubka, Petro"]
[Black "Mogranzini, Roberto"]
[WhiteFideId "14114224"]
[BlackFideId "810894"]
[WhiteElo "2346"]
[BlackElo "2469"]
[Result "1/2-1/2"]
[Round "08"]
[TimeControl "180+1"]
[Date "2022.03.08"]
[WhiteClock "0:00:18"]
[BlackClock "0:00:28"]

1. d4 {[%clk 0:02:50]}  Nf6 {[%clk 0:02:59]} 2. Nf3 {[%clk 0:02:46]}  d6 {[%clk 0:03:00]} 3. Bg5 {[%clk 0:02:46]}  Nbd7 {[%clk 0:02:59]} 4. Nc3 {[%clk 0:02:45]}  e5 {[%clk 0:02:57]} 5. e3 {[%clk 0:02:38]}  c6 {[%clk 0:02:56]} 6. a4 {[%clk 0:02:32]}  a5 {[%clk 0:02:54]} 7. Bd3 {[%clk 0:02:29]}  Be7 {[%clk 0:02:51]} 8. Nd2 {[%clk 0:02:18]}  O-O {[%clk 0:02:47]} 9. O-O {[%clk 0:02:12]}  exd4 {[%clk 0:02:44]} 10. exd4 {[%clk 0:02:11]}  d5 {[%clk 0:02:45]} 11. Re1 {[%clk 0:02:08]}  Re8 {[%clk 0:02:44]} 12. Nf3 {[%clk 0:02:03]}  Bd6 {[%clk 0:02:40]} 13. Rxe8+ {[%clk 0:02:01]}  Qxe8 {[%clk 0:02:40]} 14. h3 {[%clk 0:01:58]}  h6 {[%clk 0:02:40]} 15. Bh4 {[%clk 0:01:55]}  Ne4 {[%clk 0:02:06]} 16. Bxe4 {[%clk 0:01:46]}  dxe4 {[%clk 0:02:06]} 17. Nd2 {[%clk 0:01:47]}  e3 {[%clk 0:02:03]} 18. Nc4 {[%clk 0:01:44]}  exf2+ {[%clk 0:02:02]} 19. Bxf2 {[%clk 0:01:45]}  Bf8 {[%clk 0:02:02]} 20. Qf3 {[%clk 0:01:36]}  Nf6 {[%clk 0:02:02]} 21. Nb6 {[%clk 0:01:28]}  Ra6 {[%clk 0:01:56]} 22. Nxc8 {[%clk 0:01:15]}  Qxc8 {[%clk 0:01:57]} 23. Ne4 {[%clk 0:01:12]}  Nxe4 {[%clk 0:01:55]} 24. Qxe4 {[%clk 0:01:13]}  c5 {[%clk 0:01:41]} 25. d5 {[%clk 0:01:12]}  Rg6 {[%clk 0:01:40]} 26. c4 {[%clk 0:01:07]}  Bd6 {[%clk 0:01:31]} 27. Kh1 {[%clk 0:01:04]}  Qd7 {[%clk 0:01:27]} 28. b3 {[%clk 0:01:02]}  Rf6 {[%clk 0:01:20]} 29. Bg1 {[%clk 0:00:55]}  Qf5 {[%clk 0:01:16]} 30. Qe8+ {[%clk 0:00:52]}  Kh7 {[%clk 0:01:16]} 31. Re1 {[%clk 0:00:52]}  Rg6 {[%clk 0:01:10]} 32. Qe4 {[%clk 0:00:42]}  Qxe4 {[%clk 0:00:48]} 33. Rxe4 {[%clk 0:00:43]}  Rg3 {[%clk 0:00:48]} 34. Bh2 {[%clk 0:00:40]}  Rg6 {[%clk 0:00:44]} 35. g4 {[%clk 0:00:37]}  Bxh2 {[%clk 0:00:34]} 36. Kxh2 {[%clk 0:00:37]}  b6 {[%clk 0:00:35]} 37. Re7 {[%clk 0:00:30]}  Rf6 {[%clk 0:00:31]} 38. Kg3 {[%clk 0:00:23]}  g5 {[%clk 0:00:29]} 39. Rc7 {[%clk 0:00:19]}  Kg6 {[%clk 0:00:28]} 40. Rc6 {[%clk 0:00:18]}  Kg7 {[%clk 0:00:27]} 41. Rxf6 {[%clk 0:00:17]}  Kxf6 {[%clk 0:00:27]} 42. Kf3 {[%clk 0:00:18]}  Ke5 {[%clk 0:00:27]} 43. Ke3 {[%clk 0:00:18]}  f5 {[%clk 0:00:25]} 44. gxf5 {[%clk 0:00:18]}  Kxf5 {[%clk 0:00:25]} 45. Kf3 {[%clk 0:00:19]}  h5 {[%clk 0:00:25]} 46. Ke3 {[%clk 0:00:19]}  Ke5 {[%clk 0:00:26]} 47. Kf3 {[%clk 0:00:19]}  Kf5 {[%clk 0:00:26]} 48. Kf2 {[%clk 0:00:19]}  Ke5 {[%clk 0:00:26]} 49. Ke2 {[%clk 0:00:18]}  Kf5 {[%clk 0:00:26]} 50. Ke3 {[%clk 0:00:17]}  Ke5 {[%clk 0:00:27]} 51. h4 {[%clk 0:00:16]}  g4 {[%clk 0:00:26]} 52. Kf2 {[%clk 0:00:16]}  Kf5 {[%clk 0:00:26]} 53. Kg3 {[%clk 0:00:17]}  Ke5 {[%clk 0:00:27]} 54. Kf2 {[%clk 0:00:16]}  Kf5 {[%clk 0:00:28]} 55. Kg3 {[%clk 0:00:17]}  Ke5 {[%clk 0:00:28]} 56. Kf2 {[%clk 0:00:18]} 1/2-1/2


[Site "https://www.chess.com"]

[Event "Titled Tuesday Blitz March 08 Late 2022"]
[White "Kaganskiy, Gleb"]
[Black "P., Komal Kishore"]
[WhiteFideId "4132025"]
[BlackFideId "5016703"]
[WhiteElo "2165"]
[BlackElo "2155"]
[Result "1-0"]
[Round "08"]
[TimeControl "180+1"]
[Date "2022.03.09"]
[WhiteClock "0:02:04"]
[BlackClock "0:02:26"]

1. e4 {[%clk 0:02:55]}  c6 {[%clk 0:03:00]} 2. d4 {[%clk 0:02:53]}  d5 {[%clk 0:03:01]} 3. Nd2 {[%clk 0:02:51]}  dxe4 {[%clk 0:03:00]} 4. Nxe4 {[%clk 0:02:50]}  Bf5 {[%clk 0:03:00]} 5. Ng3 {[%clk 0:02:48]}  Bg6 {[%clk 0:03:00]} 6. Nh3 {[%clk 0:02:49]}  e6 {[%clk 0:02:58]} 7. Nf4 {[%clk 0:02:48]}  Bd6 {[%clk 0:02:58]} 8. h4 {[%clk 0:02:48]}  Bxf4 {[%clk 0:02:58]} 9. Bxf4 {[%clk 0:02:47]}  Qb6 {[%clk 0:02:56]} 10. h5 {[%clk 0:02:39]}  Bf5 {[%clk 0:02:55]} 11. Nxf5 {[%clk 0:02:38]}  Qa5+ {[%clk 0:02:55]} 12. Bd2 {[%clk 0:02:33]}  Qxf5 {[%clk 0:02:56]} 13. Bd3 {[%clk 0:02:32]}  Qd5 {[%clk 0:02:50]} 14. Qg4 {[%clk 0:02:21]}  c5 {[%clk 0:02:28]} 15. Qxg7 {[%clk 0:02:10]}  Qxd4 {[%clk 0:02:26]} 16. Bc3 {[%clk 0:02:04]} 1-0


[Site "https://www.chess.com"]

[Event "Titled Tuesday Blitz March 08 Late 2022"]
[White "Karttunen, Mika"]
[Black "Mickiewicz, Piotr"]
[WhiteFideId "502081"]
[BlackFideId "1114891"]
[WhiteElo "2343"]
[BlackElo "2266"]
[Result "0-1"]
[Round "08"]
[TimeControl "180+1"]
[Date "2022.03.09"]
[WhiteClock "0:00:08"]
[BlackClock "0:00:05"]

1. e4 {[%clk 0:03:00]}  c6 {[%clk 0:02:58]} 2. d4 {[%clk 0:03:00]}  d5 {[%clk 0:02:59]} 3. exd5 {[%clk 0:02:59]}  cxd5 {[%clk 0:02:58]} 4. Bd3 {[%clk 0:02:59]}  Nc6 {[%clk 0:02:58]} 5. c3 {[%clk 0:02:59]}  Nf6 {[%clk 0:02:58]} 6. h3 {[%clk 0:02:58]}  g6 {[%clk 0:02:51]} 7. Nf3 {[%clk 0:02:58]}  Bg7 {[%clk 0:02:49]} 8. O-O {[%clk 0:02:57]}  O-O {[%clk 0:02:49]} 9. Re1 {[%clk 0:02:53]}  Bf5 {[%clk 0:02:48]} 10. Bf1 {[%clk 0:02:49]}  a6 {[%clk 0:02:37]} 11. a4 {[%clk 0:02:47]}  Qc7 {[%clk 0:01:42]} 12. Nbd2 {[%clk 0:02:43]}  Rab8 {[%clk 0:01:39]} 13. Nb3 {[%clk 0:02:41]}  Nb4 {[%clk 0:01:23]} 14. Re2 {[%clk 0:02:36]}  Nd3 {[%clk 0:01:16]} 15. Be3 {[%clk 0:02:05]}  Rfe8 {[%clk 0:01:14]} 16. Rd2 {[%clk 0:02:05]}  Nf4 {[%clk 0:01:13]} 17. Ne5 {[%clk 0:01:58]}  Ne6 {[%clk 0:01:11]} 18. g4 {[%clk 0:01:38]}  Be4 {[%clk 0:01:11]} 19. f3 {[%clk 0:01:38]}  Nd7 {[%clk 0:01:10]} 20. fxe4 {[%clk 0:01:36]}  Nxe5 {[%clk 0:01:09]} 21. dxe5 {[%clk 0:01:35]}  dxe4 {[%clk 0:01:04]} 22. Bg2 {[%clk 0:01:18]}  Qxe5 {[%clk 0:01:03]} 23. Rd5 {[%clk 0:01:10]}  Qg3 {[%clk 0:01:01]} 24. Qe1 {[%clk 0:01:05]}  Qc7 {[%clk 0:00:29]} 25. Qf2 {[%clk 0:00:57]}  Qc4 {[%clk 0:00:27]} 26. Qd2 {[%clk 0:00:52]}  Qxb3 {[%clk 0:00:27]} 27. Bxe4 {[%clk 0:00:48]}  Rbd8 {[%clk 0:00:26]} 28. Rd1 {[%clk 0:00:23]}  Rxd5 {[%clk 0:00:26]} 29. Bxd5 {[%clk 0:00:23]}  Qxa4 {[%clk 0:00:26]} 30. Bxb7 {[%clk 0:00:24]}  Qb5 {[%clk 0:00:18]} 31. Bd5 {[%clk 0:00:22]}  Rd8 {[%clk 0:00:17]} 32. Qg2 {[%clk 0:00:19]}  Nc7 {[%clk 0:00:12]} 33. Bf3 {[%clk 0:00:19]}  Rxd1+ {[%clk 0:00:09]} 34. Bxd1 {[%clk 0:00:20]}  Nd5 {[%clk 0:00:08]} 35. Bf2 {[%clk 0:00:18]}  e5 {[%clk 0:00:08]} 36. Qe4 {[%clk 0:00:14]}  Nf4 {[%clk 0:00:08]} 37. Qa8+ {[%clk 0:00:13]}  Bf8 {[%clk 0:00:07]} 38. Be3 {[%clk 0:00:08]}  Nxh3+ {[%clk 0:00:04]} 39. Kg2 {[%clk 0:00:09]}  Nf4+ {[%clk 0:00:05]} 40. Kf3 {[%clk 0:00:09]}  Qf1+ {[%clk 0:00:04]} 41. Ke4 {[%clk 0:00:07]}  Qxd1 {[%clk 0:00:04]} 42. Bxf4 {[%clk 0:00:08]}  Qh1+ {[%clk 0:00:05]} 0-1


[Site "https://www.chess.com"]

[Event "Titled Tuesday Blitz March 08 Late 2022"]
[White "Keymer, Vincent"]
[Black "Caruana, Fabiano"]
[WhiteFideId "12940690"]
[BlackFideId "2020009"]
[WhiteElo "2557"]
[BlackElo "2744"]
[Result "0-1"]
[Round "08"]
[TimeControl "180+1"]
[Date "2022.03.08"]
[WhiteClock "0:00:06"]
[BlackClock "0:00:33"]

1. Nf3 {[%clk 0:03:00]}  d5 {[%clk 0:02:47]} 2. e3 {[%clk 0:03:00]}  Nf6 {[%clk 0:02:47]} 3. c4 {[%clk 0:03:01]}  c6 {[%clk 0:02:47]} 4. Nc3 {[%clk 0:03:01]}  Nbd7 {[%clk 0:02:46]} 5. d4 {[%clk 0:02:58]}  e6 {[%clk 0:02:47]} 6. Qc2 {[%clk 0:02:58]}  Bd6 {[%clk 0:02:46]} 7. b3 {[%clk 0:02:57]}  O-O {[%clk 0:02:45]} 8. Be2 {[%clk 0:02:55]}  b6 {[%clk 0:02:45]} 9. O-O {[%clk 0:02:54]}  Bb7 {[%clk 0:02:46]} 10. Bb2 {[%clk 0:02:54]}  Re8 {[%clk 0:02:47]} 11. a4 {[%clk 0:02:49]}  a5 {[%clk 0:02:46]} 12. h3 {[%clk 0:02:43]}  Qe7 {[%clk 0:02:46]} 13. Bd3 {[%clk 0:02:43]}  Rad8 {[%clk 0:02:40]} 14. Rad1 {[%clk 0:02:22]}  h6 {[%clk 0:02:35]} 15. Rfe1 {[%clk 0:02:19]}  Bb4 {[%clk 0:02:35]} 16. Re2 {[%clk 0:02:20]}  c5 {[%clk 0:02:26]} 17. cxd5 {[%clk 0:02:14]}  exd5 {[%clk 0:02:26]} 18. Nb5 {[%clk 0:01:52]}  Rc8 {[%clk 0:02:11]} 19. Qb1 {[%clk 0:01:08]}  c4 {[%clk 0:02:05]} 20. Bf5 {[%clk 0:01:05]}  c3 {[%clk 0:02:00]} 21. Ba1 {[%clk 0:01:04]}  Ba6 {[%clk 0:01:55]} 22. Rc2 {[%clk 0:00:59]}  Bxb5 {[%clk 0:01:55]} 23. axb5 {[%clk 0:01:00]}  g6 {[%clk 0:01:54]} 24. Bd3 {[%clk 0:00:55]}  Ne4 {[%clk 0:01:51]} 25. Qc1 {[%clk 0:00:37]}  Rc7 {[%clk 0:01:45]} 26. Ne1 {[%clk 0:00:18]}  Rec8 {[%clk 0:01:44]} 27. Bf1 {[%clk 0:00:17]}  Nd2 {[%clk 0:01:33]} 28. Bxc3 {[%clk 0:00:12]}  Bxc3 {[%clk 0:01:13]} 29. Rdxd2 {[%clk 0:00:13]}  Bxd2 {[%clk 0:01:07]} 30. Rxc7 {[%clk 0:00:13]}  Bxc1 {[%clk 0:01:07]} 31. Rxc8+ {[%clk 0:00:14]}  Kg7 {[%clk 0:01:07]} 32. Rxc1 {[%clk 0:00:15]}  Qb4 {[%clk 0:01:06]} 33. Nd3 {[%clk 0:00:13]}  Qxb3 {[%clk 0:01:05]} 34. Rc7 {[%clk 0:00:14]}  Nf8 {[%clk 0:00:50]} 35. Ne5 {[%clk 0:00:14]}  a4 {[%clk 0:00:48]} 36. Rxf7+ {[%clk 0:00:13]}  Kg8 {[%clk 0:00:48]} 37. e4 {[%clk 0:00:04]}  a3 {[%clk 0:00:45]} 38. exd5 {[%clk 0:00:03]}  a2 {[%clk 0:00:45]} 39. Ra7 {[%clk 0:00:04]}  Qb1 {[%clk 0:00:44]} 40. d6 {[%clk 0:00:04]}  a1=Q {[%clk 0:00:42]} 41. Rxa1 {[%clk 0:00:04]}  Qxa1 {[%clk 0:00:43]} 42. d7 {[%clk 0:00:05]}  Ne6 {[%clk 0:00:41]} 43. Kh2 {[%clk 0:00:04]}  Qxd4 {[%clk 0:00:38]} 44. Bc4 {[%clk 0:00:05]}  Qxe5+ {[%clk 0:00:37]} 45. g3 {[%clk 0:00:05]}  Qd6 {[%clk 0:00:34]} 46. Bxe6+ {[%clk 0:00:06]}  Kf8 {[%clk 0:00:34]} 47. Bg4 {[%clk 0:00:06]}  h5 {[%clk 0:00:33]} 0-1


[Site "https://www.chess.com"]

[Event "Titled Tuesday Blitz March 08 Late 2022"]
[White "Kosakowski, Jakub"]
[Black "Chigaev, Maksim"]
[WhiteFideId "1185080"]
[BlackFideId "4108116"]
[WhiteElo "2476"]
[BlackElo "2502"]
[Result "0-1"]
[Round "08"]
[TimeControl "180+1"]
[Date "2022.03.08"]
[WhiteClock "0:00:29"]
[BlackClock "0:00:59"]

1. e4 {[%clk 0:03:00]}  c5 {[%clk 0:03:00]} 2. Nf3 {[%clk 0:03:00]}  d6 {[%clk 0:03:01]} 3. Bb5+ {[%clk 0:03:00]}  Bd7 {[%clk 0:02:59]} 4. Bxd7+ {[%clk 0:02:59]}  Nxd7 {[%clk 0:03:00]} 5. O-O {[%clk 0:02:59]}  Ngf6 {[%clk 0:02:59]} 6. Qe2 {[%clk 0:02:59]}  g6 {[%clk 0:02:52]} 7. d4 {[%clk 0:02:57]}  cxd4 {[%clk 0:02:52]} 8. Nxd4 {[%clk 0:02:57]}  Bg7 {[%clk 0:02:53]} 9. Rd1 {[%clk 0:02:57]}  O-O {[%clk 0:02:52]} 10. Nc3 {[%clk 0:02:56]}  Rc8 {[%clk 0:02:52]} 11. h3 {[%clk 0:02:53]}  a6 {[%clk 0:02:52]} 12. Bd2 {[%clk 0:02:39]}  Re8 {[%clk 0:02:45]} 13. Be1 {[%clk 0:02:37]}  Qc7 {[%clk 0:02:39]} 14. a4 {[%clk 0:02:35]}  Qc4 {[%clk 0:02:32]} 15. Qd2 {[%clk 0:02:31]}  Ne5 {[%clk 0:02:12]} 16. f3 {[%clk 0:02:26]}  Qc5 {[%clk 0:02:03]} 17. b3 {[%clk 0:02:02]}  b6 {[%clk 0:01:46]} 18. Kh1 {[%clk 0:01:58]}  e6 {[%clk 0:01:40]} 19. a5 {[%clk 0:01:44]}  b5 {[%clk 0:01:38]} 20. Na2 {[%clk 0:01:44]}  d5 {[%clk 0:01:33]} 21. Nb4 {[%clk 0:01:21]}  dxe4 {[%clk 0:01:26]} 22. Nxa6 {[%clk 0:01:20]}  Qa7 {[%clk 0:01:25]} 23. Nb4 {[%clk 0:01:20]}  exf3 {[%clk 0:01:25]} 24. Nxb5 {[%clk 0:01:17]}  Qa8 {[%clk 0:01:10]} 25. Nd6 {[%clk 0:01:07]}  Red8 {[%clk 0:01:06]} 26. a6 {[%clk 0:00:40]}  Rxd6 {[%clk 0:01:01]} 27. Qxd6 {[%clk 0:00:29]}  fxg2+ {[%clk 0:01:01]} 28. Kh2 {[%clk 0:00:29]}  Nf3+ {[%clk 0:01:00]} 29. Kxg2 {[%clk 0:00:29]}  Nh4+ {[%clk 0:00:59]} 0-1


[Site "https://www.chess.com"]

[Event "Titled Tuesday Blitz March 08 Late 2022"]
[White "Kozina, Anastasia"]
[Black "Ladan, Nicholas"]
[WhiteFideId "24174017"]
[BlackFideId "30918855"]
[WhiteElo "1993"]
[BlackElo "2167"]
[Result "1-0"]
[Round "08"]
[TimeControl "180+1"]
[Date "2022.03.09"]
[WhiteClock "0:00:08"]
[BlackClock "0:00:04"]

1. e4 {[%clk 0:02:59]}  e5 {[%clk 0:02:59]} 2. Nf3 {[%clk 0:02:59]}  Nc6 {[%clk 0:02:59]} 3. Bb5 {[%clk 0:02:59]}  a6 {[%clk 0:02:57]} 4. Ba4 {[%clk 0:02:59]}  g6 {[%clk 0:02:56]} 5. Bxc6 {[%clk 0:02:57]}  dxc6 {[%clk 0:02:56]} 6. O-O {[%clk 0:02:57]}  Bg7 {[%clk 0:02:56]} 7. d3 {[%clk 0:02:58]}  Ne7 {[%clk 0:02:56]} 8. Nbd2 {[%clk 0:02:58]}  O-O {[%clk 0:02:55]} 9. b3 {[%clk 0:02:58]}  c5 {[%clk 0:02:52]} 10. Bb2 {[%clk 0:02:58]}  Nc6 {[%clk 0:02:52]} 11. Nc4 {[%clk 0:02:57]}  Re8 {[%clk 0:02:43]} 12. a4 {[%clk 0:02:57]}  Qf6 {[%clk 0:02:38]} 13. h3 {[%clk 0:02:56]}  Qe7 {[%clk 0:02:30]} 14. Ne3 {[%clk 0:02:51]}  Be6 {[%clk 0:02:27]} 15. Nd2 {[%clk 0:02:40]}  Nd4 {[%clk 0:02:23]} 16. c3 {[%clk 0:02:31]}  Nc6 {[%clk 0:02:17]} 17. Nd5 {[%clk 0:02:24]}  Qd7 {[%clk 0:02:16]} 18. Qf3 {[%clk 0:02:14]}  Rad8 {[%clk 0:02:11]} 19. c4 {[%clk 0:02:14]}  Nd4 {[%clk 0:02:02]} 20. Bxd4 {[%clk 0:02:13]}  exd4 {[%clk 0:02:00]} 21. Nf6+ {[%clk 0:01:58]}  Bxf6 {[%clk 0:02:00]} 22. Qxf6 {[%clk 0:01:59]}  Qc8 {[%clk 0:01:28]} 23. Nf3 {[%clk 0:01:52]}  Rd6 {[%clk 0:01:27]} 24. Qh4 {[%clk 0:01:48]}  Kg7 {[%clk 0:01:15]} 25. Nh2 {[%clk 0:01:39]}  Rb6 {[%clk 0:01:12]} 26. Rab1 {[%clk 0:01:37]}  Qd8 {[%clk 0:01:09]} 27. Qg3 {[%clk 0:01:33]}  Qd6 {[%clk 0:00:47]} 28. f4 {[%clk 0:01:29]}  f5 {[%clk 0:00:47]} 29. e5 {[%clk 0:01:27]}  Qc6 {[%clk 0:00:41]} 30. Nf3 {[%clk 0:01:26]}  Rb4 {[%clk 0:00:40]} 31. Qh4 {[%clk 0:01:15]}  Bg8 {[%clk 0:00:29]} 32. Rfe1 {[%clk 0:01:07]}  Re6 {[%clk 0:00:17]} 33. Ng5 {[%clk 0:01:06]}  Re8 {[%clk 0:00:15]} 34. Re2 {[%clk 0:00:59]}  h6 {[%clk 0:00:15]} 35. Nf3 {[%clk 0:00:58]}  Re6 {[%clk 0:00:15]} 36. Qg3 {[%clk 0:00:58]}  Qe8 {[%clk 0:00:13]} 37. Nh4 {[%clk 0:00:57]}  Kh7 {[%clk 0:00:12]} 38. Qf3 {[%clk 0:00:54]}  Reb6 {[%clk 0:00:11]} 39. Reb2 {[%clk 0:00:53]}  Be6 {[%clk 0:00:11]} 40. g4 {[%clk 0:00:51]}  Qd7 {[%clk 0:00:09]} 41. gxf5 {[%clk 0:00:47]}  Bxf5 {[%clk 0:00:09]} 42. Kh2 {[%clk 0:00:40]}  Be6 {[%clk 0:00:07]} 43. Qg3 {[%clk 0:00:35]}  Qf7 {[%clk 0:00:07]} 44. Nf3 {[%clk 0:00:25]}  Bd7 {[%clk 0:00:05]} 45. Nd2 {[%clk 0:00:24]}  Bxa4 {[%clk 0:00:03]} 46. Ne4 {[%clk 0:00:18]}  Rxb3 {[%clk 0:00:03]} 47. Rxb3 {[%clk 0:00:16]}  Bxb3 {[%clk 0:00:03]} 48. Nf6+ {[%clk 0:00:15]}  Rxf6 {[%clk 0:00:03]} 49. exf6 {[%clk 0:00:15]}  Ba4 {[%clk 0:00:03]} 50. Rxb7 {[%clk 0:00:13]}  Bc6 {[%clk 0:00:03]} 51. Rb8 {[%clk 0:00:13]}  Qxf6 {[%clk 0:00:03]} 52. f5 {[%clk 0:00:08]}  Qxf5 {[%clk 0:00:03]} 53. Qxc7+ {[%clk 0:00:08]}  Bd7 {[%clk 0:00:02]} 54. Qg3 {[%clk 0:00:07]}  Qxd3 {[%clk 0:00:02]} 55. Qxd3 {[%clk 0:00:07]}  h5 {[%clk 0:00:02]} 56. Rb7 {[%clk 0:00:07]}  Kh6 {[%clk 0:00:03]} 57. Rxd7 {[%clk 0:00:07]}  h4 {[%clk 0:00:03]} 58. Rd6 {[%clk 0:00:08]}  a5 {[%clk 0:00:04]} 59. Qxg6# {[%clk 0:00:08]} 1-0


[Site "https://www.chess.com"]

[Event "Titled Tuesday Blitz March 08 Late 2022"]
[White "Kuegel, Tobias"]
[Black "Pinheiro, Iung Alicio de O."]
[WhiteFideId "4636295"]
[BlackFideId "2104350"]
[WhiteElo "2213"]
[BlackElo "2617"]
[Result "1-0"]
[Round "08"]
[TimeControl "180+1"]
[Date "2022.03.08"]
[WhiteClock "0:00:18"]
[BlackClock "0:00:08"]

1. e4 {[%clk 0:03:00]}  d6 {[%clk 0:02:55]} 2. d4 {[%clk 0:02:59]}  Nf6 {[%clk 0:02:54]} 3. Nc3 {[%clk 0:02:59]}  g6 {[%clk 0:02:54]} 4. Bc4 {[%clk 0:02:55]}  Bg7 {[%clk 0:02:49]} 5. Qe2 {[%clk 0:02:55]}  Nc6 {[%clk 0:02:49]} 6. e5 {[%clk 0:02:55]}  Nd7 {[%clk 0:02:47]} 7. e6 {[%clk 0:02:32]}  fxe6 {[%clk 0:02:45]} 8. Nf3 {[%clk 0:02:30]}  Nxd4 {[%clk 0:02:25]} 9. Nxd4 {[%clk 0:02:27]}  Bxd4 {[%clk 0:02:26]} 10. Bxe6 {[%clk 0:02:19]}  Nc5 {[%clk 0:02:14]} 11. Bc4 {[%clk 0:02:11]}  e6 {[%clk 0:01:47]} 12. Be3 {[%clk 0:02:09]}  Bxe3 {[%clk 0:01:05]} 13. Qxe3 {[%clk 0:02:10]}  O-O {[%clk 0:01:04]} 14. O-O-O {[%clk 0:02:08]}  Qf6 {[%clk 0:01:02]} 15. Kb1 {[%clk 0:01:46]}  Kh8 {[%clk 0:01:00]} 16. h4 {[%clk 0:01:43]}  Bd7 {[%clk 0:00:54]} 17. f3 {[%clk 0:01:20]}  Rab8 {[%clk 0:00:51]} 18. h5 {[%clk 0:01:18]}  g5 {[%clk 0:00:50]} 19. h6 {[%clk 0:01:17]}  b5 {[%clk 0:00:50]} 20. Bb3 {[%clk 0:01:14]}  b4 {[%clk 0:00:50]} 21. Ne2 {[%clk 0:01:08]}  a5 {[%clk 0:00:48]} 22. Nd4 {[%clk 0:01:01]}  a4 {[%clk 0:00:47]} 23. Bc4 {[%clk 0:01:02]}  a3 {[%clk 0:00:47]} 24. b3 {[%clk 0:00:59]}  Rbe8 {[%clk 0:00:47]} 25. c3 {[%clk 0:00:54]}  e5 {[%clk 0:00:45]} 26. Ne2 {[%clk 0:00:52]}  e4 {[%clk 0:00:45]} 27. fxe4 {[%clk 0:00:29]}  Nxe4 {[%clk 0:00:34]} 28. Qd4 {[%clk 0:00:21]}  Qxd4 {[%clk 0:00:30]} 29. Rxd4 {[%clk 0:00:20]}  Nxc3+ {[%clk 0:00:26]} 30. Nxc3 {[%clk 0:00:19]}  bxc3 {[%clk 0:00:27]} 31. Kc2 {[%clk 0:00:20]}  Rf2+ {[%clk 0:00:23]} 32. Kxc3 {[%clk 0:00:20]}  Rxa2 {[%clk 0:00:23]} 33. b4 {[%clk 0:00:19]}  Rxg2 {[%clk 0:00:22]} 34. Ra1 {[%clk 0:00:18]}  Re3+ {[%clk 0:00:21]} 35. Rd3 {[%clk 0:00:18]}  Rxd3+ {[%clk 0:00:19]} 36. Bxd3 {[%clk 0:00:19]}  a2 {[%clk 0:00:19]} 37. Bc4 {[%clk 0:00:18]}  Rg3+ {[%clk 0:00:14]} 38. Kd4 {[%clk 0:00:18]}  Rg4+ {[%clk 0:00:14]} 39. Kc3 {[%clk 0:00:18]}  c6 {[%clk 0:00:12]} 40. Bxa2 {[%clk 0:00:18]}  Rg3+ {[%clk 0:00:10]} 41. Kd4 {[%clk 0:00:18]}  Be8 {[%clk 0:00:08]} 42. Be6 {[%clk 0:00:18]}  Rf3 {[%clk 0:00:05]} 43. Ra8 {[%clk 0:00:17]}  Rf8 {[%clk 0:00:06]} 44. Bd7 {[%clk 0:00:18]}  Kg8 {[%clk 0:00:06]} 45. Bxe8 {[%clk 0:00:17]}  c5+ {[%clk 0:00:07]} 46. bxc5 {[%clk 0:00:17]}  dxc5+ {[%clk 0:00:08]} 47. Kxc5 {[%clk 0:00:17]}  g4 {[%clk 0:00:08]} 48. Kd5 {[%clk 0:00:16]}  g3 {[%clk 0:00:08]} 49. Ke6 {[%clk 0:00:17]}  g2 {[%clk 0:00:08]} 50. Bf7+ {[%clk 0:00:18]} 1-0


[Site "https://www.chess.com"]

[Event "Titled Tuesday Blitz March 08 Late 2022"]
[White "Makarian, Rudik"]
[Black "Koutlas, Nikolaos"]
[WhiteFideId "44105681"]
[BlackFideId "25827138"]
[WhiteElo "2388"]
[BlackElo "1610"]
[Result "0-1"]
[Round "08"]
[TimeControl "180+1"]
[Date "2022.03.08"]
[WhiteClock "0:00:46"]
[BlackClock "0:00:20"]

1. d4 {[%clk 0:02:49]}  Nf6 {[%clk 0:02:59]} 2. c4 {[%clk 0:02:49]}  g6 {[%clk 0:03:00]} 3. h4 {[%clk 0:02:48]}  c5 {[%clk 0:02:53]} 4. d5 {[%clk 0:02:47]}  e6 {[%clk 0:02:53]} 5. Nc3 {[%clk 0:02:14]}  exd5 {[%clk 0:02:51]} 6. cxd5 {[%clk 0:02:15]}  h6 {[%clk 0:02:49]} 7. e4 {[%clk 0:02:09]}  d6 {[%clk 0:02:49]} 8. h5 {[%clk 0:02:09]}  g5 {[%clk 0:02:48]} 9. Nf3 {[%clk 0:02:04]}  Bg7 {[%clk 0:02:47]} 10. Nd2 {[%clk 0:02:04]}  O-O {[%clk 0:02:46]} 11. Be2 {[%clk 0:02:01]}  Re8 {[%clk 0:02:44]} 12. O-O {[%clk 0:02:01]}  Nbd7 {[%clk 0:02:40]} 13. Nc4 {[%clk 0:02:00]}  Ne5 {[%clk 0:02:39]} 14. Nxe5 {[%clk 0:02:00]}  Rxe5 {[%clk 0:02:40]} 15. f4 {[%clk 0:02:01]}  gxf4 {[%clk 0:02:36]} 16. Bxf4 {[%clk 0:02:01]}  Re8 {[%clk 0:02:35]} 17. Qd2 {[%clk 0:02:00]}  Nxe4 {[%clk 0:02:32]} 18. Nxe4 {[%clk 0:02:01]}  Rxe4 {[%clk 0:02:32]} 19. Bxh6 {[%clk 0:02:01]}  Bd4+ {[%clk 0:01:31]} 20. Rf2 {[%clk 0:02:00]}  Qf6 {[%clk 0:01:08]} 21. Rf1 {[%clk 0:01:18]}  Rxe2 {[%clk 0:00:58]} 22. Qxe2 {[%clk 0:01:13]}  Qxh6 {[%clk 0:00:58]} 23. Qe8+ {[%clk 0:01:13]}  Qf8 {[%clk 0:00:58]} 24. Qe4 {[%clk 0:01:13]}  Bd7 {[%clk 0:00:47]} 25. Kh2 {[%clk 0:01:12]}  Bxf2 {[%clk 0:00:46]} 26. Rxf2 {[%clk 0:01:12]}  Re8 {[%clk 0:00:45]} 27. Qf4 {[%clk 0:01:13]}  Re5 {[%clk 0:00:41]} 28. g4 {[%clk 0:01:11]}  Qg7 {[%clk 0:00:35]} 29. Rg2 {[%clk 0:01:03]}  Rxd5 {[%clk 0:00:33]} 30. Re2 {[%clk 0:00:56]}  Re5 {[%clk 0:00:29]} 31. Rd2 {[%clk 0:00:51]}  Bxg4 {[%clk 0:00:26]} 32. Rg2 {[%clk 0:00:46]}  Rxh5+ {[%clk 0:00:23]} 33. Kg1 {[%clk 0:00:46]}  Rg5 {[%clk 0:00:21]} 34. Qxd6 {[%clk 0:00:46]}  Qd4+ {[%clk 0:00:20]} 0-1


[Site "https://www.chess.com"]